Cogmind - Beta 15 @@@ ROGUE MODE // 2025.06.30 @ 22:21:37 Player: McSaucyNugget Result: Destroyed by MAIN.C with Omega Cannon Performance ------------- Evolutions (9) 4500 Regions Visited (29) 5800 Robots Destroyed (265) 1325 Value Destroyed (11830) 11830 Prototype IDs (249) 4980 Alien Tech Used (6) 1200 Bonus (24242) 24242 TOTAL SCORE: 53877 Bonus ------- High Alert Combat Kills 529 Follower Combat Kills 2348 Entered Garrisons 200 Used RIF Installer 500 Aligned with FarCom 300 Met Data Miner 300 Used Data Conduit 3000 Met Zhirov 300 Built Enhanced Grunts 300 A7 Reached Mainframe 300 Met R17 at Cetus 500 Found Hidden Lab 3000 Decrypted A0 Command 3000 Met R17 at Research 2000 Pursued by Intercept 500 Destroyed MAIN.C Guards 500 Met MAIN.C 5000 Destroyed MAIN.C Shell 5000 Friendly Fire -3335 Cogmind --------- Core Integrity 0/1600 Matter 300/300 Energy 100/100 System Corruption 43% Temperature Cool (0) Movement Core (1350) Ox26 Location -1/Command Parts ------- > --- POWER (4) -------- (None) > --- PROPULSION (6) --- (None) > --- UTILITY (13) ----- Huge Storage Unit Enhanced Optical Array > --- WEAPON (3) ------- (None) > --- INVENTORY (25) --- Experimental Energy Well (0) Advanced Force Field AEGIS Remote Shield Transdimensional Reconstructor Gamma Rifle Enhanced Quantum Rifle Compact HERF Cannon Enhanced Nova Cannon Enhanced Hardcell Cannon Enhanced Hardcell Cannon Gamma Bomb Array Advanced Micro-nuke Launcher Guided Remote Datajack Plasma Cutter Peak State ------------ > --- POWER ------------ Antimatter Reactor Particle Reactor Quantum Reactor Light Quantum Reactor > --- PROPULSION ------- Improved Heavy Treads Improved Heavy Treads Biometal Heavy Treads > --- UTILITY ---------- Advanced Heat Sink Advanced Heat Sink Huge Storage Unit Enhanced Optical Array Improved Targeting Computer Improved Heavy Armor Plating Experimental Powered Armor Graphene Brace Experimental Shock Absorption System Advanced Force Field Advanced Point Defense System Deep Network Scanner > --- WEAPON ----------- Enhanced Quantum Rifle Enhanced Nova Cannon Enhanced Hardcell Cannon > --- INVENTORY -------- Antimatter Reactor Light Quantum Reactor Improved Heavy Treads Improved Heavy Treads Biometal Heavy Treads Large Matter Pod Advanced Salvage Targeting Computer Advanced Transmission Jammer Hardened Heavy Armor Plating Layered Medium Armor Plating Transdimensional Reconstructor Enhanced Quantum Rifle Enhanced Quantum Rifle Compact HERF Cannon Potential Cannon Enhanced Hardcell Cannon Gamma Bomb Array Guided Remote Datajack Plasma Cutter [Rating: 204] Favorites ----------- Power Quantum Reactor Engine Light Deuterium Engine Power Core Reinforced Fission Core Reactor Quantum Reactor Propulsion Centrium Heavy Treads Treads Centrium Heavy Treads Leg Carbon-fiber Leg Wheel Compact Wheel Utility Enhanced Optical Array Device Advanced Heat Sink Storage Huge Storage Unit Processor Enhanced Optical Array Hackware Relay Coupler [NC] Protection Centrium Medium Armor Plating Artifact LC Capacitor Weapon Advanced Variable Charge Gun Energy Gun Advanced Variable Charge Gun Energy Cannon Heavy Phase Cannon Ballistic Gun Light Assault Rifle Ballistic Cannon Gauss Cannon Launcher Missile Launcher Special Weapon Remote Datajack Impact Weapon Hammer Slashing Weapon Scythe Piercing Weapon Enhanced Force Lance Build | -11 -10 -10 -10 -9 -8 -8 -7 -7 -7 -7 -6 -6 -6 -6 -6 -6 -6 -5 -5 -5 -5 -4 -4 -4 -4 -3 -2 -1 -1 ------- Run | Yrd Mat Min Exi Min Mat Gar Fac Low Low Dat Pro Fac Was Fac Ext Cet Arc Fac Upp Upp Zhi Pro Fac Arm Lab Res Res Acc Com Slots Evolved 18 | . . . . . 4 . 2 . . . . 2 . . . . . 2 . . . . 2 . . 2 2 2 . Power 3 | . . . . . . . . . . . . 1 . . . . . . . . . . . . . 1 . 1 . Propulsion 4 | . . . . . 2 . . . . . . . . . . . . 1 . . . . 1 . . . . . . Utility 10 | . . . . . 2 . 2 . . . . . . . . . . 1 . . . . 1 . . 1 2 1 . Weapon 1 | . . . . . . . . . . . . 1 . . . . . . . . . . . . . . . . . Parts Attached 227 | 7 7 1 . 2 9 10 14 5 3 4 9 3 3 26 19 9 10 7 4 1 4 5 9 4 10 11 5 4 22 Power 28 | 1 2 . . 1 1 . . . . 1 2 . 1 3 3 2 1 . 1 . 1 1 . . . 1 1 1 4 Engine 9 | 1 2 . . 1 1 . . . . . 1 . 1 1 1 . . . . . . . . . . . . . . Core 7 | . . . . . . . . . . 1 . . . 2 2 . 1 . . . . 1 . . . . . . . Reactor 12 | . . . . . . . . . . . 1 . . . . 2 . . 1 . 1 . . . . 1 1 1 4 Propulsion 55 | 2 1 . . 1 1 5 2 2 3 . 3 . 1 11 6 3 1 1 . . . 1 1 2 . 3 . . 5 Treads 34 | 2 1 . . . . 3 1 . 2 . 2 . . 4 2 3 1 1 . . . 1 1 2 . 3 . . 5 Leg 1 | . . . . . . . . . . . . . . . 1 . . . . . . . . . . . . . . Wheel 20 | . . . . 1 1 2 1 2 1 . 1 . 1 7 3 . . . . . . . . . . . . . . Hover . | . . . . . . . . . . . . . . . . . . . . . . . . . . . . . . Flight . | . . . . . . . . . . . . . . . . . . . . . . . . . . . . . . Utility 82 | 2 1 1 . . 4 1 5 2 . 2 2 2 1 5 6 2 7 4 . 1 3 2 5 1 4 4 3 1 11 Device 30 | 1 . . . . 1 . . 1 . 1 1 . . 2 2 1 2 2 . . 1 . 3 1 1 2 2 1 5 Storage 6 | 1 1 1 . . 1 . . . . . . . . 1 . . . . . . . . . . . . 1 . . Processor 8 | . . . . . 2 . . . . . . 2 . . 2 . . . . . . . . . . . . . 2 Hackware 13 | . . . . . . . 2 . . . . . 1 . . . 2 2 . . 1 1 2 . . 2 . . . Protection 24 | . . . . . . 1 3 1 . 1 1 . . 2 2 1 3 . . 1 1 1 . . 2 . . . 4 Artifact 1 | . . . . . . . . . . . . . . . . . . . . . . . . . 1 . . . . Weapon 62 | 2 3 . . . 3 4 7 1 . 1 2 1 . 7 4 2 1 2 3 . . 1 3 1 6 3 1 2 2 Energy Gun 13 | . . . . . 2 1 1 . . . . 1 . . . 2 . 1 . . . . . 1 3 . . . 1 Energy Cannon 8 | . . . . . . . 1 . . . . . . 1 . . . . 1 . . 1 1 . 1 . 1 1 . Ballistic Gun 9 | 2 1 . . . . . 1 . . . 1 . . 1 . . . . . . . . 2 . . 1 . . . Ballistic Cannon 15 | . 2 . . . . 1 2 . . . 1 . . 3 2 . 1 . . . . . . . . 1 . 1 1 Launcher 7 | . . . . . . 2 1 1 . . . . . 1 . . . . 1 . . . . . . 1 . . . Special Weapon 6 | . . . . . . . 1 . . . . . . 1 1 . . 1 1 . . . . . 1 . . . . Impact Weapon 1 | . . . . . 1 . . . . . . . . . . . . . . . . . . . . . . . . Slashing Weapon 2 | . . . . . . . . . . 1 . . . . 1 . . . . . . . . . . . . . . Piercing Weapon 1 | . . . . . . . . . . . . . . . . . . . . . . . . . 1 . . . . Special Melee Weapon . | . . . . . . . . . . . . . . . . . . . . . . . . . . . . . . Unidentified Prototypes 23 | . . . . . 1 . 4 1 . . . . . . . 1 . . 1 . 2 1 1 1 6 1 . 1 2 Corrupted Parts 8 | . . . . . . . . . . . . . . . 1 . 1 . . . . . . . . . . . 6 System Corruption 35 | . . . . . . . . . . . . . . . 10 . 2 . . . . . . . . . . . 23 Parts Lost 107 | . 3 . . 1 . 2 6 . 3 4 11 . . 19 15 . . . . . . 2 4 2 . 1 . . 34 Power 19 | . 2 . . . . . . . . 1 1 . . 3 3 . . . . . . . . . . 1 . . 8 Propulsion 36 | . 1 . . 1 . 2 4 . 2 1 3 . . 9 4 . . . . . . . . 1 . . . . 8 Utility 33 | . . . . . . . 1 . 1 1 5 . . 2 4 . . . . . . . 3 1 . . . . 15 Weapon 19 | . . . . . . . 1 . . 1 2 . . 5 4 . . . . . . 2 1 . . . . . 3 Highest Loss Streak 24 | . 1 . . 1 . 1 5 . 3 4 4 . . 8 9 . . . . . . 2 3 2 . 1 . . 24 To Critical Strikes . | . . . . . . . . . . . . . . . . . . . . . . . . . . . . . . Average Backups 18 | 2 8 12 14 14 15 19 18 18 18 17 12 17 18 17 21 24 23 22 21 21 21 20 19 22 21 20 19 19 18 Power 1 | . 1 1 1 1 1 2 2 2 2 1 1 2 1 . 1 2 2 2 2 2 2 2 2 3 3 2 2 1 1 Propulsion 2 | 1 3 4 3 3 2 1 2 3 3 2 1 3 4 3 3 3 3 2 3 3 4 2 2 2 2 1 3 3 2 Utility 6 | . . 2 4 4 4 6 4 4 4 3 2 4 5 5 10 10 9 9 10 9 8 8 7 7 6 7 5 4 4 Weapon 5 | . 2 5 5 5 6 6 6 6 6 6 4 3 4 3 4 6 6 6 5 5 4 4 3 5 6 4 5 6 6 Tool/Special . | . . . . . . . . . . . . . . . . . . . . . . . . . . . . . . Unused Backups 62 | . . 3 2 1 5 1 7 . . . . . . 2 1 6 2 5 . . 1 1 7 1 2 3 3 2 7 Power 7 | . . 1 . . 1 . 1 . . . . . . . . 3 . . . . . . 1 . . . . . . Propulsion 8 | . . . . . . . . . . . . . . . 1 2 . 2 . . . 1 1 . 1 . . . . Utility 22 | . . 1 . 1 1 . 2 . . . . . . 1 . 1 2 2 . . 1 . 2 1 . 1 2 . 4 Weapon 21 | . . 1 2 . 3 1 3 . . . . . . 1 . . . 1 . . . . 3 . 1 1 1 1 2 Tool/Special 4 | . . . . . . . 1 . . . . . . . . . . . . . . . . . . 1 . 1 1 Average Slot Usage (%) 88 | . 95 100 100 99 82 95 95 99 96 92 80 76 86 84 87 90 78 86 87 88 71 87 84 89 87 82 82 83 79 Engine 3 | . 13 14 14 14 9 9 7 7 7 5 2 . 4 5 2 . . . . . . . . . . . . . . Core 2 | . . . . . . . . . . 1 2 . . 3 7 6 6 5 3 . . 4 5 5 5 4 . . . Reactor 4 | . . . . . . . . . . . 1 6 6 2 . 5 6 5 6 11 10 5 5 4 5 8 11 15 13 Treads 14 | . 24 28 28 14 9 16 14 14 13 13 13 12 . 8 4 8 12 15 16 16 16 15 15 20 25 16 12 11 10 Wheel 5 | . . . . 12 18 17 13 14 13 14 7 6 17 9 14 8 . . . . . . . . . . . . . Device 11 | . 14 14 14 14 11 9 7 14 14 14 15 . . 3 8 10 8 9 11 11 11 11 14 14 12 9 15 18 22 Storage 6 | . 14 14 14 14 9 9 7 7 7 7 7 6 6 6 6 6 6 5 5 5 5 5 5 5 5 4 4 3 3 Processor 9 | . . . . . 8 9 7 7 7 7 7 15 18 18 13 12 12 11 11 11 11 11 10 10 10 9 8 7 7 Hackware 5 | . . . . . . . 11 7 7 7 7 6 7 6 6 6 6 11 11 6 4 2 9 5 2 6 8 7 1 Protection 6 | . . . . . . 7 8 7 10 8 1 6 6 4 4 7 7 6 5 9 8 13 5 10 12 10 8 7 6 Energy Gun 3 | . . . . . 4 12 2 . . . . 4 3 2 . 5 2 10 10 11 1 8 4 6 1 5 4 3 4 Energy Cannon 2 | . . . . . . . 5 7 7 5 . . . . 2 5 . . 2 5 . 7 9 5 2 4 4 2 1 Ballistic Gun 1 | . 22 . . . . . . . . . 2 . . . . . . . . . . . . 3 . . . . . Ballistic Cannon 5 | . 5 28 28 28 10 4 5 7 7 5 9 12 6 5 8 4 2 4 . . . . . . . . 4 2 2 Peak Build Rating 204 | 7 8 8 12 10 22 28 38 42 42 43 47 55 59 67 62 105 106 124 129 128 129 129 143 143 153 168 183 201 204 Average Rating 82 | 5 6 8 8 9 18 26 35 39 40 38 40 51 57 54 53 85 95 121 124 127 106 124 127 139 126 163 181 196 184 On Entrance 76 | . 7 8 8 9 10 21 27 37 42 39 36 40 55 58 49 61 103 106 124 124 128 129 122 143 131 143 166 183 193 Naked Turns . | . . . . . . . . . . . . . . . . . . . . . . . . . . . . . . Heaviest Build 234 | 11 30 30 30 37 56 63 65 71 71 71 68 72 77 127 130 147 145 148 146 150 154 162 157 158 182 200 211 225 234 Greatest Support 225 | 40 40 40 40 40 32 32 26 42 32 32 40 28 54 54 40 160 160 187 187 160 160 190 218 218 194 225 225 225 225 Greatest Overweight (x) 37 | . 1 . . 2 1 3 5 3 2 2 2 2 1 24 37 4 . . . . . . 1 . . 1 . . 26 Average Overweight (x) 1 | . . . . 1 1 1 2 2 1 1 1 2 1 3 3 2 . . . . . . . . . . . . . Largest Inventory Capacity 25 | 8 15 15 15 15 20 20 20 20 20 20 20 20 20 25 25 25 25 25 25 25 25 25 25 25 25 25 25 25 25 Average Capacity 22 | 7 13 15 15 15 15 20 20 20 20 20 20 20 20 21 25 25 25 25 25 25 25 25 25 25 25 25 25 25 25 Most Carried 25 | 3 12 15 15 15 20 20 20 20 20 19 14 19 19 21 25 25 25 25 25 25 25 25 25 25 25 25 25 25 25 Average Carried 20 | 2 8 12 14 14 15 19 19 19 19 18 12 17 18 19 22 24 24 24 24 24 24 23 22 24 24 23 24 24 22 Final Capacity 25 | 8 15 15 15 15 20 20 20 20 20 20 20 20 20 25 25 25 25 25 25 25 25 25 25 25 25 25 25 25 25 Final Carried 25 | 3 12 15 15 15 20 19 20 19 19 15 14 19 19 21 24 25 25 25 25 25 25 22 25 25 25 25 25 25 14 Class Distribution -------------------- 27% | Scavenger-Mutant 22% | Scavenger-Tank 21% | Mutant 7% | Commander-Mutant 6% | Generator-Tank 3% | Hacker-Tank 3% | Gunner Dominant Class ---------------- Mutant | -10/Materials Mutant | -10/Mines Mutant | -10/Exiles Mutant | -9/Mines Mutant | -8/Materials Scavenger-Mutant | -8/Garrison Scavenger-Mutant | -7/Factory Scavenger-Mutant | -7/Lower Caves Scavenger-Mutant | -7/Lower Caves Scavenger-Mutant | -7/Data Miner Mutant | -6/Proximity Caves Gunner | -6/Factory Scavenger-Mutant | -6/Waste Mutant | -6/Factory Commander-Mutant | -6/Extension Commander-Tank | -6/Cetus Commander-Mutant | -6/Archives Scavenger-Tank | -5/Factory Scavenger-Tank | -5/Upper Caves Scavenger-Tank | -5/Upper Caves Scavenger-Mutant | -5/Zhirov Scavenger-Tank | -4/Proximity Caves Scavenger-Tank | -4/Factory Scavenger-Tank | -4/Armory Scavenger-Mutant | -4/Lab Scavenger-Tank | -3/Research Hacker-Tank | -2/Research Generator-Tank | -1/Access Generator-Tank | -1/Command Resources | -11 -10 -10 -10 -9 -8 -8 -7 -7 -7 -7 -6 -6 -6 -6 -6 -6 -6 -5 -5 -5 -5 -4 -4 -4 -4 -3 -2 -1 -1 ----------- Run | Yrd Mat Min Exi Min Mat Gar Fac Low Low Dat Pro Fac Was Fac Ext Cet Arc Fac Upp Upp Zhi Pro Fac Arm Lab Res Res Acc Com Matter Collected 8848 | 238 255 216 . 95 42 353 518 197 57 25 882 86 . 869 1217 216 198 231 291 79 70 338 180 131 150 515 240 68 1091 Remotely 433 | . . . . . . . . . . 25 408 . . . . . . . . . . . . . . . . . . Salvage Created 10932 | 82 491 56 . 140 80 431 405 159 243 150 559 72 . 1207 978 59 307 330 313 192 109 789 739 314 . 416 670 173 1468 Parts 505 | 11 35 5 . 6 3 36 18 13 8 2 14 7 . 71 39 1 23 21 15 9 . 26 29 13 . 10 28 3 59 Haulers Intercepted 3 | . 1 . . . 1 . . . . . . . . . . . . . . . . . . . . . 1 . . Recyclers Shooed 4 | . 1 . . . . . . . . . . . . . 2 . . 1 . . . . . . . . . . . Parts Field Recycled . | . . . . . . . . . . . . . . . . . . . . . . . . . . . . . . Retrieved Matter . | . . . . . . . . . . . . . . . . . . . . . . . . . . . . . . Parts Self-Destructed 98 | . . . . . . . . 12 11 . 14 . . . . . . . 25 9 . 27 . . . . . . . Prevented 4 | . . . . . . . . . . . . . . . . . . . 1 . . 3 . . . . . . . Kills | -11 -10 -10 -10 -9 -8 -8 -7 -7 -7 -7 -6 -6 -6 -6 -6 -6 -6 -5 -5 -5 -5 -4 -4 -4 -4 -3 -2 -1 -1 ------- Run | Yrd Mat Min Exi Min Mat Gar Fac Low Low Dat Pro Fac Was Fac Ext Cet Arc Fac Upp Upp Zhi Pro Fac Arm Lab Res Res Acc Com Combat Hostiles Destroyed 210 | . 14 2 . 3 1 25 10 8 3 4 21 1 . 29 10 . . 8 7 3 . 16 10 7 . 5 11 . 12 Melee 6 | . . . . . . . . . . . 1 . . 4 1 . . . . . . . . . . . . . . Guns 52 | . 11 . . . . 7 1 . . . . . . 5 . . . 1 3 2 . 6 3 2 . 5 3 . 3 Cannons 89 | . 3 2 . 3 1 5 5 4 3 . 7 1 . 8 8 . . 4 2 1 . 9 4 4 . . 8 . 7 AOE 57 | . . . . . . 12 4 4 . 4 13 . . 11 1 . . 3 2 . . . 3 . . . . . . Classes Destroyed 20 | 2 3 . . 1 1 2 4 . 1 . 1 . . 2 1 . . 1 . . . . 1 . . . . . . Worker 9 | . . . . . . . 2 . . . . 2 . 1 2 . . . . . . . 1 . . . . 1 . Builder 6 | . . . . . . . . . . . . . . 2 . . . . . . . . 3 . . . . 1 . Tunneler 7 | 2 . . . 1 . . . . . . . . . 2 1 . . 1 . . . . . . . . . . . Hauler 3 | . 1 . . . 1 . . . . . . . . . . . . . . . . . . . . . 1 . . Recycler 9 | 1 1 . . . . . 1 . . . . . . 2 3 . . . . . . . . . . . . 1 . Mechanic 1 | . . . . . . . . . . . . . . . . . . . . . . . 1 . . . . . . Operator 11 | . . . . . . . . . . . . . . 1 1 . 9 . . . . . . . . . . . . Drone 1 | . . . . . . . . . . . 1 . . . . . . . . . . . . . . . . . . Watcher 5 | . . . . . . . 1 . . . . . . . . . . . . . . . 2 1 . . . 1 . Swarmer 69 | . 6 . . . . 12 4 5 . . 4 1 . 10 . . . 4 3 . . 5 6 4 . . 5 . . Cutter 3 | . . . . . . 3 . . . . . . . . . . . . . . . . . . . . . . . Grunt 52 | . 8 2 . 2 . 6 2 2 2 . 9 1 . 9 2 . . 1 . . . 2 . . . 3 1 . . Brawler 7 | . . . . 1 . . 1 . . . 3 . . 1 . . . . . . . 1 . . . . . . . Duelist 11 | . . . . . . . . . 1 . 2 . . . . . . . . . . 6 . 2 . . . . . Sentry 30 | . . . . . 1 3 1 1 . . 1 . . 5 5 . . . 1 1 . 2 4 1 . 1 2 . 1 Specialist 4 | . . . . . . 1 . . . . . . . . . . . 1 2 . . . . . . . . . . Hunter 9 | . . . . . . . 1 . . . 1 . . 1 2 . . 1 1 2 . . . . . . . . . Programmer 13 | . . . . . . . 1 . . . . . . 3 . . . . . . . . . . . . 3 . 6 Heavy 1 | . . . . . . . . . . . . . . . . . . 1 . . . . . . . . . . . Behemoth 2 | . . . . . . . . . . . . . . . 1 . . . . . . . . . . 1 . . . M Guard 2 | . . . . . . . . . . . . . . . . . . . . . . . . . . . . . 2 Enhanced Grunt 4 | . . . . . . . . . . 4 . . . . . . . . . . . . . . . . . . . Combat Programmer 2 | . . . . . . . . . . . . . . . . . . . . . . . . . . . . . 2 Packrat 2 | . . . . . . . . . 2 . . . . . . . . . . . . . . . . . . . . Savage 1 | . . . . . . . . . . . . . . . 1 . . . . . . . . . . . . . . Best Kill Streak 10 | 1 4 1 . 2 1 7 6 5 3 5 10 2 . 8 3 . 3 3 3 2 . 5 6 3 . 3 5 2 3 Combat Bots Only 10 | . 3 1 . 2 1 7 4 5 3 4 10 1 . 6 2 . . 3 3 2 . 5 5 3 . 3 5 . 3 Max Kills in Single Turn 5 | 1 1 1 . 1 1 3 3 2 1 1 2 2 . 3 1 1 1 3 2 1 . 2 5 1 . 1 2 1 1 Gunslinging . | . . . . . . . . . . . . . . . . . . . . . . . . . . . . . . Exploded 3 | . . . . . . 3 3 2 . 1 2 . . 3 1 . . 3 2 . . . 3 . . . . . . Melee 1 | . . . . . . . . . . . 1 . . 1 1 . . . . . . . . . . . . . . Uniques/NPCs Destroyed 4 | . . . . . . . . . . 1 . . . . . 1 . . . . . . . . 1 . . . 1 Data Miner (-7/Data Miner) A7 (-6/Cetus) A5 (-4/Lab) MAIN.C Shell (-1/Command) Combat | -11 -10 -10 -10 -9 -8 -8 -7 -7 -7 -7 -6 -6 -6 -6 -6 -6 -6 -5 -5 -5 -5 -4 -4 -4 -4 -3 -2 -1 -1 -------- Run | Yrd Mat Min Exi Min Mat Gar Fac Low Low Dat Pro Fac Was Fac Ext Cet Arc Fac Upp Upp Zhi Pro Fac Arm Lab Res Res Acc Com Hostile Shots Fired 1995 | . 105 8 . 10 3 75 86 39 8 20 136 . . 301 186 1 . 18 31 11 . 98 51 33 3 26 39 . 707 Missed 562 | . 28 3 . 2 . 19 32 20 . 8 34 . . 92 54 . . 1 12 2 . 20 12 7 1 7 9 . 199 Intercepted 35 | . . . . . . . . . . . . . . . . . . . . . . . . . . . . . 35 Hits 1433 | . 77 5 . 8 3 56 54 19 8 12 102 . . 209 132 1 . 17 19 9 . 78 39 26 2 19 30 . 508 Melee 58 | . . . . . . 9 . . 6 . . . . . . . . . . . . 30 . 12 . . . . 1 Projectile 1375 | . 77 5 . 8 3 47 54 19 2 12 102 . . 209 132 1 . 17 19 9 . 48 39 14 2 19 30 . 507 AOE 19 | . . . . . . . . . . . . . . . . . . . . . . . . . . . . . 19 Critical Strikes 61 | . . . . . . . . . 2 . 7 . . 3 1 . . 2 . . . 11 1 1 . 1 . . 32 Actively Blocked 32 | . . . . . . . . . . . . . . . . . . . . . . . . . . . . . 32 Part Disruptions 11 | . . . . . . . . . . . . . . . . . . 3 2 . . . 3 . . . . . 3 Damage Taken 28731 | . 667 74 . 89 56 770 632 173 240 568 1842 . . 2627 1437 12 . 459 304 211 . 2294 1401 597 48 427 340 32 13431 Core 3289 | . 73 48 . . . 67 57 6 40 47 265 . . 391 250 . . 22 22 25 . 121 71 14 . 47 50 . 1673 Absorbed by Shields 4231 | . . . . . . . . . . . . . . . 152 12 . . . . . . . . . . 361 34 3672 Reduced by Siege Mode 827 | . . . . . . . . . . . . . . . . . . . . . . 85 . 11 . . 17 . 714 Redirected to Shielding 247 | . . . . . . . 85 . . . . . . . . . . . . . . 51 35 76 . . . . . Ignored by Resistances 326 | . . . . . . . . . 5 . . . . 17 19 . . . . . . . . . . . . . 285 Regen/Repaired (Parts) 1027 | . . . . . . . 74 . . . . . . . . . . . . . . 608 259 . . . . . 86 Core Remaining (%) 75 | 100 . . . 51 . 87 . . . . 40 . . . . . 24 . . . . 81 . . 100 96 96 . . Volleys Fired 856 | 16 57 5 . 10 6 69 50 28 31 11 54 28 6 75 73 2 1 29 15 6 . 36 47 27 2 27 28 8 109 Largest 3 | 2 2 2 . 2 2 2 2 2 2 1 2 2 1 2 2 1 2 3 3 3 . 3 3 3 1 3 3 3 3 Hottest 275 | 40 60 60 . 60 60 118 118 70 70 39 80 80 5 140 113 80 145 208 250 250 . 260 275 266 10 250 240 240 250 Shots Fired 1607 | 32 114 10 . 20 12 100 84 33 38 11 84 32 6 109 113 4 3 73 31 18 . 91 104 77 2 68 80 16 242 Gun 655 | 32 104 . . . . 73 24 . . . 16 . . 28 . 2 2 50 16 12 . 39 33 50 . 41 25 6 102 Cannon 822 | . 10 10 . 20 12 14 54 30 38 . 47 31 . 69 83 1 1 20 10 6 . 43 67 27 . 27 55 10 137 Launcher 68 | . . . . . . 13 2 3 . 11 16 . . 11 4 . . 1 3 . . 4 . . . . . . . Special 62 | . . . . . . . 4 . . . 5 1 6 1 26 1 . 2 2 . . 5 4 . 2 . . . 3 Kinetic 614 | 32 114 10 . 20 12 14 26 5 7 . 63 31 . 43 73 . . 20 . . . 7 4 13 . 10 27 2 81 Thermal 848 | . . . . . . 73 50 25 31 . . . . 54 10 3 3 50 26 18 . 75 96 64 . 58 53 14 145 Explosive 68 | . . . . . . 13 2 3 . 11 16 . . 11 4 . . 1 3 . . 4 . . . . . . . Electromagnetic 16 | . . . . . . . 2 . . . . . . . . . . . . . . . . . . . . . 14 Robot Hit Streak 39 | 6 12 7 . 4 5 11 12 14 6 6 20 4 8 15 14 2 1 7 9 9 . 22 22 26 10 14 19 11 39 Robot Miss Streak 6 | 2 5 2 . 1 2 4 2 1 2 1 2 1 . 2 5 2 2 3 4 1 . 1 6 2 . 3 4 . 4 Penetration Max 1 | . . . . . . . . . . . . . . . 1 . . . . . . . . . . . . . . Secondary Targets 2 | . 2 . . . . . . . . . . . . . . . . . . . . . . . . . . . . Max Gunslinging Chain 1 | . 1 . . . . . . . . . . . . . . . . . . . . . . . . . . . . Shots Hit Robots 1040 | 21 75 6 . 13 8 47 52 5 15 9 64 7 27 72 80 20 17 37 18 14 2 64 46 48 2 28 54 6 183 Core Hits 506 | 7 30 3 . 6 3 34 20 10 7 20 52 5 2 57 33 4 7 18 14 5 1 32 37 15 . 11 17 3 53 Critical Kills 9 | . . . . . . . . . . . . . . 1 3 . . 4 . . . . 1 . . . . . . Critical Parts Destroyed 8 | . . . . . . . . . . . . . . . 6 . . 1 . . . . . . . 1 . . . Critical Strikes 59 | . . . . 1 1 4 2 . 1 . 3 . 1 7 21 . . 6 . . . . 1 1 . 1 2 . 7 Burn 6 | . . . . . . 3 . . . . . . . 2 . . . . . . . . . 1 . . . . . Meltdown 2 | . . . . . . . . . . . . . . 1 . . . . . . . . 1 . . . . . . Destroy 17 | . . . . . . . . . . . . . . . 10 . . 6 . . . . . . . 1 . . . Blast 31 | . . . . 1 1 1 2 . 1 . 3 . . 4 10 . . . . . . . . . . . 2 . 6 Corrupt 1 | . . . . . . . . . . . . . . . . . . . . . . . . . . . . . 1 Sever 2 | . . . . . . . . . . . . . 1 . 1 . . . . . . . . . . . . . . Melee Attacks 105 | . . . . . 2 . . . . 1 . . 21 14 8 18 16 . . . 2 . . . 23 . . . . Impact 2 | . . . . . 2 . . . . . . . . . . . . . . . . . . . . . . . . Slashing 80 | . . . . . . . . . . 1 . . 21 14 8 18 16 . . . 2 . . . . . . . . Piercing 23 | . . . . . . . . . . . . . . . . . . . . . . . . . 23 . . . . Sneak Attacks 61 | . . . . . . . . . . 1 . . 21 4 4 18 13 . . . . . . . . . . . . Combat Hostiles 21 | . . . . . . . . . . . . . 21 . . . . . . . . . . . . . . . . Follow-up Attacks . | . . . . . . . . . . . . . . . . . . . . . . . . . . . . . . Damage Inflicted 41298 | 176 693 101 . 228 150 2180 1567 642 412 1382 2865 210 710 4027 2435 872 1279 1135 1026 439 169 2895 1990 1657 . 1001 2359 368 8330 Guns 9880 | 176 555 . . . . 542 305 . . . 291 . . 447 . 36 25 694 356 290 . 958 507 853 . 639 596 104 2506 Cannons 16883 | . 138 101 . 228 134 145 856 136 412 . 938 210 . 1213 1505 . 29 294 111 149 . 857 1080 730 . 362 1763 180 5312 Explosions 10358 | . . . . . . 1493 406 506 . 1320 1628 . . 1814 485 . . 147 559 . . 1080 349 74 . . . . 497 Melee 3988 | . . . . . . . . . . 62 . . 710 541 445 836 1225 . . . 169 . . . . . . . . Ramming 174 | . . . . . 16 . . . . . 8 . . 12 . . . . . . . . 54 . . . . 84 . Kinetic 10596 | 176 693 101 . 228 134 145 519 . 141 . 1229 210 . 1032 1331 . . 294 . . . 69 . 132 . 199 858 38 3067 Thermal 16445 | . . . . . . 542 630 136 271 . . . . 628 174 36 54 694 467 439 . 1746 1587 1451 . 802 1501 246 5041 Explosive 9512 | . . . . . . 1493 406 506 . 1320 1628 . . 1814 485 . . 147 559 . . 1080 . 74 . . . . . Electromagnetic 583 | . . . . . . . 12 . . . . . . . . . . . . . . . 349 . . . . . 222 Impact . | . . . . . . . . . . . . . . . . . . . . . . . . . . . . . . Slashing 3988 | . . . . . . . . . . 62 . . 710 541 445 836 1225 . . . 169 . . . . . . . . Piercing . | . . . . . . . . . . . . . . . . . . . . . . . . . . . . . . Highest Corruption 43 | . . . . . . . . . . . . . 20 28 38 38 38 1 1 1 1 1 8 8 10 . 1 . 43 Average Corruption 14 | . . . . . . . . . . . . . 11 23 32 38 31 1 1 1 1 1 4 8 8 . 1 . 19 Corruption Purged 12 | . . . . . . . . . . . . . . . . . 12 . . . . . . . . . . . . Corruption Blocked . | . . . . . . . . . . . . . . . . . . . . . . . . . . . . . . Effects 346 | . . . . . . . . . . . . . 14 81 76 33 31 6 3 2 2 11 10 13 26 . 3 . 35 Message Errors 78 | . . . . . . . . . . . . . 3 20 19 5 6 3 1 . . 3 2 3 6 . . . 7 Matter Fused 79 | . . . . . . . . . . . . . 2 18 18 9 8 1 1 . . 7 1 4 4 . 1 . 5 Heat Flow Errors 42 | . . . . . . . . . . . . . 2 2 11 7 5 . . 1 . . 3 1 5 . . . 5 Energy Discharges 30 | . . . . . . . . . . . . . 1 10 5 2 1 . 1 1 . . 1 . 4 . . . 4 Parts Rejected 4 | . . . . . . . . . . . . . . 2 1 1 . . . . . . . . . . . . . Parts Fused 3 | . . . . . . . . . . . . . . 1 1 . 1 . . . . . . . . . . . . Data Loss (minor) 42 | . . . . . . . . . . . . . 1 10 6 7 4 . . . 2 . 1 2 5 . 2 . 2 Data Loss (major) 17 | . . . . . . . . . . . . . 1 4 4 . 3 . . . . . 1 1 1 . . . 2 Misfires 13 | . . . . . . . . . . . . . . 2 5 2 1 . . . . 1 1 1 . . . . . Alerts 10 | . . . . . . . . . . . . . 1 2 . . 1 2 . . . . . . 1 . . . 3 Misdirections 10 | . . . . . . . . . . . . . 3 4 1 . 1 . . . . . . . . . . . 1 Weapon Failures 18 | . . . . . . . . . . . . . . 6 5 . . . . . . . . 1 . . . . 6 Overload Shots . | . . . . . . . . . . . . . . . . . . . . . . . . . . . . . . Overflow Damage 1528 | . . . . . 1 67 46 75 61 . 31 . . 273 94 2 270 . 27 . . 123 90 42 . . 67 110 149 Projectiles 674 | . . . . . . 14 14 3 61 . . . . 181 4 . . . 26 . . 26 41 42 . . 67 46 149 Explosions 296 | . . . . . . 53 32 72 . . 31 . . . . . . . 1 . . 97 10 . . . . . . Melee 558 | . . . . . 1 . . . . . . . . 92 90 2 270 . . . . . 39 . . . . 64 . Knockbacks 66 | . 5 1 . 1 . 4 6 . . . 7 1 . 5 10 . . 1 . . . 3 . . . . 4 . 18 Impact . | . . . . . . . . . . . . . . . . . . . . . . . . . . . . . . Kinetic 64 | . 4 1 . 1 . 3 6 . . . 7 1 . 5 10 . . 1 . . . 3 . . . . 4 . 18 Secondary 2 | . 1 . . . . 1 . . . . . . . . . . . . . . . . . . . . . . . Self-Inflicted Damage 489 | . . . . . 8 107 . . . . 38 . . 43 . . . . . . . 151 142 . . . . . . Shots 14 | . . . . . . 3 . . . . 1 . . 2 . . . . . . . 3 5 . . . . . . Rammed 8 | . 1 . . . 1 . . . . . 4 . . 1 . . . . . . . . 1 . . . . . . Targets Rammed 10 | . 1 . . . 1 . . . . . 5 . . 1 . . . . . . . . 1 . . . . 1 . Kicked . | . . . . . . . . . . . . . . . . . . . . . . . . . . . . . . Crushed 2 | . . . . . . . . . . . 1 . . . . . . . . . . . . . . . . 1 . Highest Temperature 287 | . 12 27 . 42 . 90 57 . 13 . 39 . 239 268 287 212 162 207 102 207 . 60 222 198 222 162 96 36 232 Average Temperature 66 | . 6 14 . 21 . 30 14 . 13 . 14 . 119 80 97 86 62 51 40 97 . 20 57 91 101 50 25 24 65 Received Heat Transfer 2903 | . 150 42 . 48 . 90 168 . 36 . 547 . . 312 336 . . 54 45 9 . 232 144 . . 181 52 . 457 Siege Activations 10 | . . . . . . . . . . . . . . . . . . . . . . 3 . 1 . . 2 . 4 Total Turns 302 | . . . . . . . . . . . . . . . . . . . . . . 50 . 10 . . 37 . 205 Longest Duration 95 | . . . . . . . . . . . . . . . . . . . . . . 21 . 10 . . 30 . 95 Martial Activations . | . . . . . . . . . . . . . . . . . . . . . . . . . . . . . . Shielding Activations . | . . . . . . . . . . . . . . . . . . . . . . . . . . . . . . Robots Disrupted . | . . . . . . . . . . . . . . . . . . . . . . . . . . . . . . Combat Hostiles . | . . . . . . . . . . . . . . . . . . . . . . . . . . . . . . Robots Corrupted 3 | . . . . . . . . . . . . . . . . . . . . . . . 1 . . . . . 2 Combat Hostiles 2 | . . . . . . . . . . . . . . . . . . . . . . . . . . . . . 2 Parts Fried 7 | . . . . . . . . . . . . . . . . . . . . . . 1 2 . . . . 1 3 Impact Corruptions 5 | . . . . . 1 . . . . . . . . . . . . . . . . . 1 . . . . 3 . Robots Melted 6 | . . . . . . 1 . . . . . . . 2 . . . . . . . 1 1 1 . . . . . Combat Hostiles 4 | . . . . . . 1 . . . . . . . 1 . . . . . . . 1 . 1 . . . . . Parts Melted 26 | . . . . . . 2 2 . . . . . . 5 . . . 1 1 1 . 2 5 2 . 2 1 1 1 Heat Transferred 15326 | . . . . . . 1332 1036 185 370 . . . . 1322 222 18 74 814 555 518 . 1591 1443 1501 . 777 1369 222 1977 Parts Sabotaged 7 | . . . . . . . . . . . . . . . . . . . . . . . . 7 . . . . . Parts Stolen . | . . . . . . . . . . . . . . . . . . . . . . . . . . . . . . Parts Stripped . | . . . . . . . . . . . . . . . . . . . . . . . . . . . . . . Power Chain Reactions 1 | . . . . . . . . . . . . . . . . . . . . . . . 1 . . . . . . Alert | -11 -10 -10 -10 -9 -8 -8 -7 -7 -7 -7 -6 -6 -6 -6 -6 -6 -6 -5 -5 -5 -5 -4 -4 -4 -4 -3 -2 -1 -1 ------- Run | Yrd Mat Min Exi Min Mat Gar Fac Low Low Dat Pro Fac Was Fac Ext Cet Arc Fac Upp Upp Zhi Pro Fac Arm Lab Res Res Acc Com Maximum Alert Level 3 | . . . . . . 3 2 . . . . 3 . 2 2 2 1 3 . . . . . . . . 1 . . Low Security (%) 58 | 100 100 100 . 100 100 30 18 . . . . . 100 59 1 . 58 27 . . . . 100 100 . 100 91 100 100 Level 1 15 | . . . . . . 16 66 . . . . . . 15 21 53 41 . . . . . . . . . 8 . . Level 2 18 | . . . . . . 30 14 . . . . 54 . 25 76 46 . 3 . . . . . . . . . . . Level 3 8 | . . . . . . 22 . . . . . 44 . . . . . 68 . . . . . . . . . . . Level 4 . | . . . . . . . . . . . . . . . . . . . . . . . . . . . . . . Level 5 . | . . . . . . . . . . . . . . . . . . . . . . . . . . . . . . High Security . | . . . . . . . . . . . . . . . . . . . . . . . . . . . . . . Max Security . | . . . . . . . . . . . . . . . . . . . . . . . . . . . . . . Peak Influence 976 | 5 75 30 . 50 31 776 466 . . . . 945 140 520 688 514 251 976 . . . . 173 105 . 68 211 104 63 Initial 945 | . . 11 . . . . 407 . . . . 945 140 7 250 380 125 20 . . . . 49 60 . . . 104 9 Average 229 | . 29 3 . 7 2 382 287 . . . . 713 77 189 421 404 174 615 . . . . 78 58 . 10 93 47 24 Influence Increases 10283 | 15 346 50 . 75 48 796 301 200 70 20 577 998 . 984 1186 360 256 1331 490 70 5 355 427 259 . 171 366 128 399 Destroy 0b10 Robot/C 5200 | . 280 40 . 60 20 500 200 160 60 20 440 20 . 580 560 160 80 460 280 60 . 320 200 140 . 100 220 . 240 Destroy 0b10 Robot/NC 345 | 15 10 . . 5 5 . 20 . . . 10 10 . 40 65 10 45 35 . . 5 . 30 5 . . 5 20 10 Destroy Leader 728 | . 42 10 . 10 12 20 42 10 10 . 50 . . 120 56 . . 96 20 10 . 20 54 22 . 30 42 2 50 Allied During Kill 1478 | . . . . . . . . . . . 17 . . . 427 170 125 564 175 . . . . . . . . . . Successful Hack 138 | . 14 . . . 9 14 24 . . . . 14 . 2 . . . 5 . . . . . 4 . 7 12 15 18 Select Force Hacks 30 | . . . . . . . . . . . . 30 . . . . . . . . . . . . . . . . . Disable Machine 390 | . . . . . . . . . . . . 15 . 90 15 . . 45 . . . . 75 60 . . . 45 45 Anti-Garrison Action 100 | . . . . . . 100 . . . . . . . . . . . . . . . . . . . . . . . Destroy Structure 689 | . . . . . 2 117 15 . . . . 9 . 77 63 20 6 126 . . . . 68 28 . 34 42 46 36 Advance Influence 900 | . . . . . . . . . . . . 900 . . . . . . . . . . . . . . . . . Lose Combat Pursuer 285 | . . . . . . 45 . 30 . . 60 . . 75 . . . . 15 . . 15 . . . . 45 . . Influence Decreases 10283 | 15 316 80 . 75 48 20 933 240 174 20 504 670 391 482 1018 726 511 503 793 342 317 277 381 306 77 171 191 288 414 Entered New Map 2545 | . . 19 . . . . 369 54 21 . . 28 261 3 262 300 189 39 329 112 312 . 29 64 77 . . 71 6 Time Decay 6163 | 15 228 61 . 65 48 . 494 186 133 10 384 342 130 339 506 286 302 344 404 230 5 277 312 222 . 116 191 217 316 Search Patrol Dispatched 300 | . . . . . . . . . . . . 300 . . . . . . . . . . . . . . . . . Lost Part 682 | . 30 . . 10 . 20 60 . 20 10 80 . . 140 150 . . . . . . . 40 20 . 10 . . 92 Lost Ally 490 | . . . . . . . 10 . . . 40 . . . 100 140 20 120 60 . . . . . . . . . . Purge Threat 103 | . 58 . . . . . . . . . . . . . . . . . . . . . . . . 45 . . . Squads Dispatched 33 | . 2 . . . . . 3 . . . 1 2 . 7 1 . . 5 . . . 1 1 2 . 4 1 1 2 Investigation 6 | . 2 . . . . . . . . . . 1 . . . . . 1 . . . . . 1 . 1 . . . Extermination 12 | . . . . . . . 1 . . . . 1 . 3 . . . 1 . . . . 1 1 . . 1 1 2 Reinforcement 11 | . . . . . . . 2 . . . . . . 4 1 . . 2 . . . . . . . 2 . . . Assault 2 | . . . . . . . . . . . 1 . . . . . . . . . . 1 . . . . . . . Garrison 1 | . . . . . . . . . . . . . . . . . . 1 . . . . . . . . . . . Intercept 1 | . . . . . . . . . . . . . . . . . . . . . . . . . . 1 . . . Searches Triggered 2 | . . . . . . . . . . . . 2 . . . . . . . . . . . . . . . . . Construction Impeded 2 | . . . . . . . . . . . . . . 2 . . . . . . . . . . . . . . . Haulers Reinforced 3 | . . . . . . . 1 . . . . . . 1 . . . . . . . . . . . 1 . . . Active Scanning Responses . | . . . . . . . . . . . . . . . . . . . . . . . . . . . . . . Cargo Convoy Interrupts . | . . . . . . . . . . . . . . . . . . . . . . . . . . . . . . Stealth | -11 -10 -10 -10 -9 -8 -8 -7 -7 -7 -7 -6 -6 -6 -6 -6 -6 -6 -5 -5 -5 -5 -4 -4 -4 -4 -3 -2 -1 -1 --------- Run | Yrd Mat Min Exi Min Mat Gar Fac Low Low Dat Pro Fac Was Fac Ext Cet Arc Fac Upp Upp Zhi Pro Fac Arm Lab Res Res Acc Com Distress Signals 14 | . 4 . . . . . 1 . . . 2 . . . 2 1 . 2 . . . . 1 . . 1 . . . Communications Jammed 28 | . . . . . . . . . . . . . . . . . . . . . . . 12 11 . . 5 . . Distress Signals 28 | . . . . . . . . . . . . . . . . . . . . . . . 12 11 . . 5 . . Times Spotted 351 | . 21 2 . 6 1 20 16 10 3 4 37 1 6 39 23 7 13 21 17 3 . 19 13 15 1 6 15 1 31 Peak Tracking Total 15 | . 5 1 . 2 1 6 4 5 3 4 9 1 4 4 4 5 2 6 5 2 . 7 4 4 1 3 5 1 15 Tactical Retreats 10 | . . . . . . 2 . 1 . . 2 . . 2 . . . . 1 . . 1 . . . . 1 . . Traps | -11 -10 -10 -10 -9 -8 -8 -7 -7 -7 -7 -6 -6 -6 -6 -6 -6 -6 -5 -5 -5 -5 -4 -4 -4 -4 -3 -2 -1 -1 ------- Run | Yrd Mat Min Exi Min Mat Gar Fac Low Low Dat Pro Fac Was Fac Ext Cet Arc Fac Upp Upp Zhi Pro Fac Arm Lab Res Res Acc Com Traps Triggered 19 | . 1 . . . . 2 4 . . . . 1 . 1 6 . . 2 . . . . . . . . 1 1 . Indirectly . | . . . . . . . . . . . . . . . . . . . . . . . . . . . . . . Trap Hack Attempts . | . . . . . . . . . . . . . . . . . . . . . . . . . . . . . . Triggered . | . . . . . . . . . . . . . . . . . . . . . . . . . . . . . . Disarmed . | . . . . . . . . . . . . . . . . . . . . . . . . . . . . . . Reprogrammed . | . . . . . . . . . . . . . . . . . . . . . . . . . . . . . . Reused . | . . . . . . . . . . . . . . . . . . . . . . . . . . . . . . Traps Extracted . | . . . . . . . . . . . . . . . . . . . . . . . . . . . . . . Installed . | . . . . . . . . . . . . . . . . . . . . . . . . . . . . . . Triggered . | . . . . . . . . . . . . . . . . . . . . . . . . . . . . . . Machines | -11 -10 -10 -10 -9 -8 -8 -7 -7 -7 -7 -6 -6 -6 -6 -6 -6 -6 -5 -5 -5 -5 -4 -4 -4 -4 -3 -2 -1 -1 ---------- Run | Yrd Mat Min Exi Min Mat Gar Fac Low Low Dat Pro Fac Was Fac Ext Cet Arc Fac Upp Upp Zhi Pro Fac Arm Lab Res Res Acc Com Machines Disabled 35 | . . . . . . 2 . . . . 1 1 . 6 2 . . 3 1 . . . 5 4 4 . . 3 3 Max in Single Turn 4 | . . . . . . 1 . . . . 1 1 . 2 . . . . 1 . . . 4 1 1 . . 1 1 Garrison Access 6 | . . . . . . . 2 . . . . . . . . . . 1 . . . . . . . 2 . 1 . Garrison Relay 2 | . . . . . . 2 . . . . . . . . . . . . . . . . . . . . . . . Machines Repaired . | . . . . . . . . . . . . . . . . . . . . . . . . . . . . . . Machines Dismantled 4 | . . . . . . . . . . . . . . . . . . . . . . . . . 1 . . 2 1 Machines Sabotaged . | . . . . . . . . . . . . . . . . . . . . . . . . . . . . . . Overloaded Fab Kills . | . . . . . . . . . . . . . . . . . . . . . . . . . . . . . . Hacking | -11 -10 -10 -10 -9 -8 -8 -7 -7 -7 -7 -6 -6 -6 -6 -6 -6 -6 -5 -5 -5 -5 -4 -4 -4 -4 -3 -2 -1 -1 --------- Run | Yrd Mat Min Exi Min Mat Gar Fac Low Low Dat Pro Fac Was Fac Ext Cet Arc Fac Upp Upp Zhi Pro Fac Arm Lab Res Res Acc Com Machines Accessed 52 | . 4 . 2 . 4 1 3 . . 4 . 3 . 2 3 . . 5 . . 5 . 1 3 3 4 1 3 1 Terminals 24 | . 4 . . . 2 1 1 . . . . 2 . 1 3 . . 3 . . . . . 2 . 2 1 1 1 Fabricators 1 | . . . . . . . . . . . . . . . . . . . . . . . . 1 . . . . . Repair Stations 3 | . . . . . . . . . . . . . . . . . . 1 . . . . 1 . . . . 1 . Recycling Units 2 | . . . . . 1 . . . . . . . . 1 . . . . . . . . . . . . . . . Scanalyzers . | . . . . . . . . . . . . . . . . . . . . . . . . . . . . . . Garrison Access 8 | . . . . . 1 . 2 . . . . 1 . . . . . 1 . . . . . . . 2 . 1 . Total Hacks 131 | . 9 . 2 . 6 1 7 . . 23 . 7 . 3 4 . . 6 . . 14 . 2 4 24 10 2 5 2 Successful 101 | . 5 . 2 . 4 1 5 . . 23 . 3 . 3 1 . . 2 . . 14 . 1 2 24 6 1 3 1 Failed 30 | . 4 . . . 2 . 2 . . . . 4 . . 3 . . 4 . . . . 1 2 . 4 1 2 1 Catastrophic 10 | . 1 . . . 1 . . . . . . 2 . . . . . 2 . . . . 1 1 . 1 1 . . Database Lockouts . | . . . . . . . . . . . . . . . . . . . . . . . . . . . . . . Manual 25 | . 5 . 1 . . . . . . . . 3 . . 2 1 . 5 1 . . . . 2 . 3 . . 2 Terminals 44 | . 9 . . . 2 1 3 . . . . 5 . 2 4 . . 4 . . . . . 2 . 7 2 1 2 Fabricators 2 | . . . . . . . . . . . . . . . . . . . . . . . . 2 . . . . . Repair Stations 6 | . . . . . . . . . . . . . . . . . . 1 . . . . 2 . . . . 3 . Recycling Units 4 | . . . . . 3 . . . . . . . . 1 . . . . . . . . . . . . . . . Scanalyzers . | . . . . . . . . . . . . . . . . . . . . . . . . . . . . . . Garrison Access 12 | . . . . . 1 . 4 . . . . 2 . . . . . 1 . . . . . . . 3 . 1 . Terminal Hacks 81 | . 5 . 2 . 2 1 1 . . 23 . . . 2 1 . . 1 . . 14 . . . 24 3 1 1 . Record 41 | . . . 1 . . . . . . 7 . . . 2 1 . . . . . 6 . . . 23 . . 1 . Part Schematic 15 | . 2 . . . . . . . . 9 . . . . . . . . . . 4 . . . . . . . . Robot Schematic 4 | . . . . . . . . . . 4 . . . . . . . . . . . . . . . . . . . Prototype ID Bank 8 | . 1 . . . . . . . . 3 . . . . . . . . . . 4 . . . . . . . . Level Access Points 2 | . . . . . . . . . . . . . . . . . . . . . . . . . . 1 1 . . Branch Access Points 2 | . . . . . . . 1 . . . . . . . . . . 1 . . . . . . . . . . . Emergency Access Points 2 | . . . . . . 1 . . . . . . . . . . . . . . . . . . . 1 . . . Alert Level 1 | . 1 . . . . . . . . . . . . . . . . . . . . . . . . . . . . Unreport Threat 2 | . 1 . . . . . . . . . . . . . . . . . . . . . . . . 1 . . . Zone Layout 2 | . . . . . 2 . . . . . . . . . . . . . . . . . . . . . . . . Proto ID Catalog 1 | . . . 1 . . . . . . . . . . . . . . . . . . . . . . . . . . Release Object 1 | . . . . . . . . . . . . . . . . . . . . . . . . . 1 . . . . Fabricator Hacks 2 | . . . . . . . . . . . . . . . . . . . . . . . . 2 . . . . . Load Schematic 1 | . . . . . . . . . . . . . . . . . . . . . . . . 1 . . . . . Build 1 | . . . . . . . . . . . . . . . . . . . . . . . . 1 . . . . . Repair Station Hacks 2 | . . . . . . . . . . . . . . . . . . . . . . . 1 . . . . 1 . Scan Component 2 | . . . . . . . . . . . . . . . . . . . . . . . 1 . . . . 1 . Recycling Unit Hacks 2 | . . . . . 1 . . . . . . . . 1 . . . . . . . . . . . . . . . Retrieve Components 2 | . . . . . 1 . . . . . . . . 1 . . . . . . . . . . . . . . . Scanalyzer . | . . . . . . . . . . . . . . . . . . . . . . . . . . . . . . Garrison Access Hacks 11 | . . . . . 1 . 4 . . . . 1 . . . . . 1 . . . . . . . 3 . 1 . Unlock Access 1 | . . . . . 1 . . . . . . . . . . . . . . . . . . . . . . . . Seal Access 6 | . . . . . . . 2 . . . . . . . . . . 1 . . . . . . . 2 . 1 . Coupler Status 4 | . . . . . . . 2 . . . . 1 . . . . . . . . . . . . . 1 . . . Unauthorized Hacks 3 | . . . . . . . . . . . . 2 . . . . . . . . . . . . . . . . 1 Terminals 2 | . . . . . . . . . . . . 1 . . . . . . . . . . . . . . . . 1 Botnet 2 | . . . . . . . . . . . . 1 . . . . . . . . . . . . . . . . 1 Fabricators . | . . . . . . . . . . . . . . . . . . . . . . . . . . . . . . Repair Stations . | . . . . . . . . . . . . . . . . . . . . . . . . . . . . . . Recycling Units . | . . . . . . . . . . . . . . . . . . . . . . . . . . . . . . Scanalyzers . | . . . . . . . . . . . . . . . . . . . . . . . . . . . . . . Garrison Access 1 | . . . . . . . . . . . . 1 . . . . . . . . . . . . . . . . . Eject 1 | . . . . . . . . . . . . 1 . . . . . . . . . . . . . . . . . Data Cores Recovered . | . . . . . . . . . . . . . . . . . . . . . . . . . . . . . . Used . | . . . . . . . . . . . . . . . . . . . . . . . . . . . . . . Hacking Detections 28 | . 4 . . . 3 . 2 . . . . 2 . 1 2 . . 3 . . . . 1 3 . 3 1 2 1 Full Trace Events 3 | . 1 . . . . . . . . . . . . . . . . 1 . . . . . 1 . . . . . Feedback Events . | . . . . . . . . . . . . . . . . . . . . . . . . . . . . . . Feedback Blocked . | . . . . . . . . . . . . . . . . . . . . . . . . . . . . . . Robot Schematics Acquired 4 | . . . . . . . . . . 4 . . . . . . . . . . . . . . . . . . . Robots Built . | . . . . . . . . . . . . . . . . . . . . . . . . . . . . . . Authchips . | . . . . . . . . . . . . . . . . . . . . . . . . . . . . . . Time . | . . . . . . . . . . . . . . . . . . . . . . . . . . . . . . Total Robot Build Rating . | . . . . . . . . . . . . . . . . . . . . . . . . . . . . . . Part Schematics Acquired 15 | . 2 . . . . . . . . 9 . . . . . . . . . . 4 . . . . . . . . Parts Built 1 | . . . . . . . . . . . . . . . . . . . . . . . . 1 . . . . . Authchips . | . . . . . . . . . . . . . . . . . . . . . . . . . . . . . . Time 152 | . . . . . . . . . . . . . . . . . . . . . . . . 152 . . . . . Total Part Build Rating 5 | . . . . . . . . . . . . . . . . . . . . . . . . 5 . . . . . Parts Repaired . | . . . . . . . . . . . . . . . . . . . . . . . . . . . . . . Time . | . . . . . . . . . . . . . . . . . . . . . . . . . . . . . . Parts Recycled . | . . . . . . . . . . . . . . . . . . . . . . . . . . . . . . Recycled Matter . | . . . . . . . . . . . . . . . . . . . . . . . . . . . . . . Retrieved Matter . | . . . . . . . . . . . . . . . . . . . . . . . . . . . . . . Retrieved Components 5 | . . . . . 2 . . . . . . . . 3 . . . . . . . . . . . . . . . Parts Scanalyzed . | . . . . . . . . . . . . . . . . . . . . . . . . . . . . . . Part Schematics Acquired . | . . . . . . . . . . . . . . . . . . . . . . . . . . . . . . Parts Damaged . | . . . . . . . . . . . . . . . . . . . . . . . . . . . . . . Bothacking | -11 -10 -10 -10 -9 -8 -8 -7 -7 -7 -7 -6 -6 -6 -6 -6 -6 -6 -5 -5 -5 -5 -4 -4 -4 -4 -3 -2 -1 -1 ------------ Run | Yrd Mat Min Exi Min Mat Gar Fac Low Low Dat Pro Fac Was Fac Ext Cet Arc Fac Upp Upp Zhi Pro Fac Arm Lab Res Res Acc Com Used RIF Installer 1 | . . . . . . 1 . . . . . . . . . . . . . . . . . . . . . . . Robots Hacked 15 | . . . . . . . 2 . . . . . 6 . . 1 . 1 1 . . 1 2 . 1 . . . . Non-combat 7 | . . . . . . . 2 . . . . . . . . . . 1 1 . . 1 2 . . . . . . Combat 7 | . . . . . . . . . . . . . 6 . . 1 . . . . . . . . . . . . . Robot Hacks Applied 14 | . . . . . . . 2 . . . . . 6 . . 1 . 1 1 . . 1 2 . . . . . . parse_system 2 | . . . . . . . 1 . . . . . . . . 1 . . . . . . . . . . . . . ignore_targets 6 | . . . . . . . . . . . . . 6 . . . . . . . . . . . . . . . . overload_power 1 | . . . . . . . . . . . . . . . . . . . . . . . 1 . . . . . . formatsys_low 5 | . . . . . . . 1 . . . . . . . . . . 1 1 . . 1 1 . . . . . . Manual 1 | . . . . . . . . . . . . . . . . . . . . . . . . . 1 . . . . Relay Couplers Released 11 | . . . . . . 7 . . . . . 3 . . . . . . . . . . . . . 1 . . . Ejected 3 | . . . . . . . . . . . . 3 . . . . . . . . . . . . . . . . . Machine Destruction 8 | . . . . . . 7 . . . . . . . . . . . . . . . . . . . 1 . . . Attached 3 | . . . . . . . 1 . . . . . 1 . . . . . . . . 1 . . . . . . . Fabnet Peak Effective % . | . . . . . . . . . . . . . . . . . . . . . . . . . . . . . . Robots Rewired 21 | . . . . . . . 1 . . . 2 2 . . 14 . . . . . . 2 . . . . . . . Allies Hacked . | . . . . . . . . . . . . . . . . . . . . . . . . . . . . . . Hacks Repelled . | . . . . . . . . . . . . . . . . . . . . . . . . . . . . . . Allies | -11 -10 -10 -10 -9 -8 -8 -7 -7 -7 -7 -6 -6 -6 -6 -6 -6 -6 -5 -5 -5 -5 -4 -4 -4 -4 -3 -2 -1 -1 -------- Run | Yrd Mat Min Exi Min Mat Gar Fac Low Low Dat Pro Fac Was Fac Ext Cet Arc Fac Upp Upp Zhi Pro Fac Arm Lab Res Res Acc Com Total Allies 48 | . . . . . . . 2 . . . 2 2 . . 31 5 . 1 1 . . 3 1 . . . . . . Largest Group 23 | . . . . . . . 2 . . . 2 1 . . 23 23 14 14 6 . . 2 1 . . . . . . Highest-Rated Group 1167 | . . . . . . . 43 . . . 52 29 . . 841 1167 783 778 350 . . 77 23 . . . . . . Highest-Rated Ally 159 | . . . . . . . 23 . . . 32 29 . . 159 159 96 96 96 . . 47 23 . . . . . . Total Orders 35 | . . . . . . . 1 . . . . 1 . . 2 3 1 8 13 . . 1 5 . . . . . . STAY 16 | . . . . . . . . . . . . 1 . . 1 2 . 5 5 . . . 2 . . . . . . FOLLOW 12 | . . . . . . . . . . . . . . . 1 1 1 2 5 . . . 2 . . . . . . AID 7 | . . . . . . . 1 . . . . . . . . . . 1 3 . . 1 1 . . . . . . Ally Attacks 412 | . . . . . . . . . . . 14 4 . . 130 67 28 119 46 . . 4 . . . . . . . Total Damage 9964 | . . . . . . . . . . . 353 58 . . 2927 1315 522 3450 1241 . . 98 . . . . . . . Kills 81 | . . . . . . . . . . . 3 . . . 28 13 4 24 9 . . . . . . . . . . Allies Corrupted . | . . . . . . . . . . . . . . . . . . . . . . . . . . . . . . Allies Melted . | . . . . . . . . . . . . . . . . . . . . . . . . . . . . . . Intel | -11 -10 -10 -10 -9 -8 -8 -7 -7 -7 -7 -6 -6 -6 -6 -6 -6 -6 -5 -5 -5 -5 -4 -4 -4 -4 -3 -2 -1 -1 ------- Run | Yrd Mat Min Exi Min Mat Gar Fac Low Low Dat Pro Fac Was Fac Ext Cet Arc Fac Upp Upp Zhi Pro Fac Arm Lab Res Res Acc Com Active Infowar (turns) 19143 | 41 764 512 502 301 174 . . 1351 611 162 427 645 267 1445 1361 626 668 929 977 488 312 1559 789 471 1054 726 516 473 992 Optics 14458 | . . . . . 160 . . . . . . 645 267 1445 1361 626 668 929 977 488 312 1559 789 471 1054 726 516 473 992 Sensors 2551 | . . . . . . . . 1351 611 162 427 . . . . . . . . . . . . . . . . . . Seismic 2217 | 41 764 512 502 301 97 . . . . . . . . . . . . . . . . . . . . . . . . Jamming 3455 | . . . . . . . . . . . . . . . . . . . . . . . 789 471 580 487 516 473 139 Robot Analysis Total 151 | . . . . . . . . . . 151 . . . . . . . . . . . . . . . . . . . Derelict Logs Recovered 6 | . . 1 . 1 . . . . . . 1 . . . . . . . 1 . . 2 . . . . . . . Drone Launches . | . . . . . . . . . . . . . . . . . . . . . . . . . . . . . . Drone Recoveries . | . . . . . . . . . . . . . . . . . . . . . . . . . . . . . . Exploration | -11 -10 -10 -10 -9 -8 -8 -7 -7 -7 -7 -6 -6 -6 -6 -6 -6 -6 -5 -5 -5 -5 -4 -4 -4 -4 -3 -2 -1 -1 ------------- Run | Yrd Mat Min Exi Min Mat Gar Fac Low Low Dat Pro Fac Was Fac Ext Cet Arc Fac Upp Upp Zhi Pro Fac Arm Lab Res Res Acc Com Turns Passed 22554 | 206 764 512 502 301 428 806 1314 1426 611 244 1004 778 267 1445 1361 626 668 929 977 488 312 1559 789 471 1054 726 516 473 997 Spaces Moved 10568 | 96 338 235 309 207 257 427 791 595 456 171 591 354 181 709 564 264 302 489 547 290 178 462 257 195 223 383 243 217 237 Core 10 | 1 . . . . . . . . . . . . . 4 4 . . . . . . . . . . . . . 1 Treads 5105 | 95 338 235 309 1 . . 4 1 . . 13 . . 1 . 86 302 489 547 290 178 462 257 195 223 383 243 217 236 Legs . | . . . . . . . . . . . . . . . . . . . . . . . . . . . . . . Wheels 5453 | . . . . 206 257 427 787 594 456 171 578 354 181 704 560 178 . . . . . . . . . . . . . Hover . | . . . . . . . . . . . . . . . . . . . . . . . . . . . . . . Flight . | . . . . . . . . . . . . . . . . . . . . . . . . . . . . . . Fastest Speed 50 | 50 160 160 160 115 115 115 120 120 115 115 115 130 108 105 110 145 160 160 160 160 160 160 160 160 160 155 155 155 135 Average Speed 145 | 158 170 160 160 129 115 116 125 121 117 117 132 130 108 140 151 158 160 162 162 160 160 160 179 160 160 155 155 155 174 Slowest Speed 1900 | 160 240 160 160 160 115 145 305 232 120 130 245 130 108 1250 1900 240 160 163 163 160 160 160 240 160 160 232 155 155 1350 Overloaded Moves . | . . . . . . . . . . . . . . . . . . . . . . . . . . . . . . Propulsion Burnouts . | . . . . . . . . . . . . . . . . . . . . . . . . . . . . . . Robots Hopped . | . . . . . . . . . . . . . . . . . . . . . . . . . . . . . . Potential Cave-ins 19 | . . . . . . . . . . . 3 . . . . . . 2 . . . . 10 . . 4 . . . Cave-ins Triggered 2 | . . . . . . . . . . . . . . . . . . . . . . . 2 . . . . . . Teleports 1 | . . . . . . . . . . . . . . . . . . . . . . . . 1 . . . . . Exploration Rate (%) 45 | 6 51 44 69 49 17 50 21 63 51 78 68 10 86 17 75 79 93 23 68 48 63 67 13 17 99 7 8 8 13 Regions Visited 29 Branch Regions 17 Pre-discovered Areas 32 | . . 1 1 . . . . . . 25 1 . . . . . . . . . 3 1 . . . . . . . Known Exits Taken 6 | . . . 1 . 1 . 1 . . . . . . . . . . 1 . . . . . . . 1 1 . . Unknown Exits Taken 20 | 1 1 1 . 1 . . . 1 1 1 1 . . 1 1 1 1 . 1 1 1 1 1 1 1 . . 1 . Scrap Searched 13 | . . 1 . . . . . 4 . . 2 . . . . . . . 3 2 . 1 . . . . . . . Spaces Dug 111 | . . . . . 1 . 3 4 2 . 29 9 . 6 1 . . 6 . . . 3 17 1 . 15 6 4 4 Terrain Destroyed 718 | . . 1 . . 1 65 13 26 5 35 144 9 . 87 77 1 . 43 24 4 . 53 49 17 . 21 21 12 10 Melee 2 | . . . . . 1 . . . . . . . . 1 . . . . . . . . . . . . . . . Projectile 253 | . . 1 . . . . 5 20 5 . 5 9 . 16 20 1 . 24 7 4 . 19 49 10 . 21 21 6 10 AOE 463 | . . . . . . 65 8 6 . 35 139 . . 70 57 . . 19 17 . . 34 . 7 . . . 6 . Terrain Rammed . | . . . . . . . . . . . . . . . . . . . . . . . . . . . . . . Walls Destroyed . | . . . . . . . . . . . . . . . . . . . . . . . . . . . . . . Machines Disabled . | . . . . . . . . . . . . . . . . . . . . . . . . . . . . . . Actions | -11 -10 -10 -10 -9 -8 -8 -7 -7 -7 -7 -6 -6 -6 -6 -6 -6 -6 -5 -5 -5 -5 -4 -4 -4 -4 -3 -2 -1 -1 --------- Run | Yrd Mat Min Exi Min Mat Gar Fac Low Low Dat Pro Fac Was Fac Ext Cet Arc Fac Upp Upp Zhi Pro Fac Arm Lab Res Res Acc Com Total 16048 | 121 428 363 320 222 377 630 1026 1264 492 200 717 641 216 1017 956 447 465 569 608 301 203 1209 505 297 853 464 323 276 538 Wait 3554 | . 14 111 . . 77 104 107 628 2 10 46 226 . 152 208 120 115 20 33 . . 698 155 51 549 10 34 . 84 Move 10539 | 95 337 234 308 206 256 426 790 594 455 170 590 354 180 708 563 263 301 488 546 289 177 461 255 194 222 382 242 216 237 Hop . | . . . . . . . . . . . . . . . . . . . . . . . . . . . . . . Pick Up 214 | 3 11 7 6 2 13 4 17 2 1 . 4 6 2 19 16 9 8 11 1 1 2 2 19 8 8 9 5 7 11 Fast Attach 111 | 7 . . . . 4 2 12 2 . . 3 2 . 11 10 8 4 1 3 1 9 . 3 6 11 7 1 . 4 Attach 132 | . 3 . . 1 2 3 8 3 2 4 5 2 2 17 15 1 6 1 . 1 2 4 6 6 3 5 2 5 23 Detach 47 | . . . . . 3 . 2 1 . . . 1 . 5 6 1 4 . . 1 3 . 2 . 3 3 1 . 11 Swap 134 | . 4 1 . 1 3 10 9 4 1 4 10 . 4 7 5 6 2 7 5 1 . 7 5 . 6 4 4 1 23 Drop 177 | . 1 5 6 2 10 4 15 2 . . . . 1 8 4 19 8 12 5 1 8 1 11 5 16 17 6 6 4 Fire 856 | 16 57 5 . 10 6 69 50 28 31 11 54 28 6 75 73 2 1 29 15 6 . 36 47 27 2 27 28 8 109 Melee 105 | . . . . . 2 . . . . 1 . . 21 14 8 18 16 . . . 2 . . . 23 . . . . Ram 2 | . . . . . 1 . . . . . . . . 1 . . . . . . . . . . . . . . . Kick . | . . . . . . . . . . . . . . . . . . . . . . . . . . . . . . Crush 8 | . 1 . . . . . . . . . 5 . . . . . . . . . . . 1 . . . . 1 . Escape Stasis 65 | . . . . . . 8 8 . . . . . . . 48 . . . . . . . 1 . . . . . . Rewire 30 | . . . . . . . 8 . . . . 22 . . . . . . . . . . . . . . . . . Trap . | . . . . . . . . . . . . . . . . . . . . . . . . . . . . . . Miscellaneous 74 | . . . . . . . . . . . . . . . . . . . . . . . . . 10 . . 32 32 Route ------- -11/Scrapyard -10/Materials (discovered 3 exits: [*Mat x2] / [*Min]) -10/Mines -10/Exiles (discovered 2 exits: *Min x2) -9/Mines (discovered 2 exits: *Mat x2) -8/Materials -8/Garrison -7/Factory (discovered 5 exits: *Fac / *Sto x2 / *Low x2) -7/Lower Caves -7/Lower Caves -7/Data Miner -6/Proximity Caves -6/Factory -6/Waste -6/Factory -6/Extension (discovered 2 exits: *Fac / *Cet) -6/Cetus (discovered 2 exits: *Fac / [*Arc]) -6/Archives (discovered 3 exits: *Fac / [*Hub x2]) -5/Factory (discovered 4 exits: *Fac x2 / *Upp x2) -5/Upper Caves -5/Upper Caves (discovered 2 exits: *Fac / *Zhi) -5/Zhirov -4/Proximity Caves -4/Factory -4/Armory -4/Lab -3/Research (discovered 3 exits: *Res x3) -2/Research (discovered 4 exits: *Acc x3 / [*Tes]) -1/Access -1/Command History --------- Turn | Location | Event 51 | -11/Scrapyard | Discovered new exit (range 15) 207 | -11/Scrapyard | Entered Materials 303 | -10/Materials | Build established: Mutant 457 | -10/Materials | Discovered new exit (range 16) 542 | -10/Materials | Discovered new exit (range 16) 706 | -10/Materials | Discovered new exit (range 12) 971 | -10/Materials | Entered Mines 972 | -10/Mines | Assembled infested the area 1402 | -10/Mines | Learned location of Storage (-7) 1476 | -10/Mines | Discovered new exit (range 5) 1483 | -10/Mines | Entered Exiles 1484 | -10/Exiles | Identified exit to Mines 1523 | -10/Exiles | Met 8R-AWN 1549 | -10/Exiles | Met EX-HEX 1597 | -10/Exiles | Met EX-BIN 1616 | -10/Exiles | Aligned with FarCom system 1618 | -10/Exiles | Given EX-Vault access code 1656 | -10/Exiles | Opened EX-Vault 1668 | -10/Exiles | Found Skeleton Box 1732 | -10/Exiles | Found XL Autogun Array 1784 | -10/Exiles | Warned to stay clear of 0b10 Research branches 1832 | -10/Exiles | Met EX-DEC 1902 | -10/Exiles | Learned location of Zion (-6) 1985 | -10/Exiles | Left Exiles lab with Skeleton Box 1985 | -10/Exiles | Entered Mines 1993 | -9/Mines | Met a Derelict bent on vengeance 2045 | -9/Mines | Learned Materials emergency access door positions 2121 | -9/Mines | Found a Scrap Suit stashed away for nefarious purposes 2150 | -9/Mines | Discovered new exit (range 4) 2198 | -9/Mines | Discovered new exit (range 7) 2286 | -9/Mines | Entered Materials 2286 | -8/Materials | Evolved 4 slots: Propulsion x2, Utility x2 2702 | -8/Materials | Identified exit to Garrison 2714 | -8/Materials | Entered Garrison 2874 | -8/Garrison | Triggered checkpoint 2877 | -8/Garrison | Garrison Relay disabled 3093 | -8/Garrison | Garrison Relay disabled 3144 | -8/Garrison | Build established: Scavenger-Mutant 3235 | -8/Garrison | Triggered checkpoint 3354 | -8/Garrison | Triggered checkpoint 3363 | -8/Garrison | Destroyed 7 combat bots 3458 | -8/Garrison | Installed Relay Interface Framework 3490 | -8/Garrison | Discovered new exit (range 10) 3520 | -8/Garrison | Entered Factory 3520 | -7/Factory | Evolved 2 slots: Utility x2 3787 | -7/Factory | Lost 5 parts (3n1u1w) 3876 | -7/Factory | Discovered new exit (range 11) 4023 | -7/Factory | Build established: Mutant 4111 | -7/Factory | Discovered new exit (range 7) 4202 | -7/Factory | P-60 Hacker assimilated allied Gladiator 4a 4295 | -7/Factory | Identified exit to Storage 4295 | -7/Factory | Identified exit to Lower Caves 4529 | -7/Factory | Build established: Scavenger-Mutant 4834 | -7/Factory | Entered Lower Caves 5145 | -7/Lower Caves | Encountered a Warlord checkpoint 6050 | -7/Lower Caves | Attracted the attention of an 0b10 checkpoint 6088 | -7/Lower Caves | Discovered new exit (range 7) 6164 | -7/Lower Caves | Found Alien Artifact 6164 | -7/Lower Caves | Identified Core Expander 6164 | -7/Lower Caves | Installed Core Expander, added new Utility slot 6260 | -7/Lower Caves | Entered another Lower Caves area 6634 | -7/Lower Caves | Lost 3 parts (2n1u) 6663 | -7/Lower Caves | Discovered new exit (range 8) 6871 | -7/Lower Caves | Entered Data Miner 6871 | -7/Data Miner | Discovered new exit (range 6) 6893 | -7/Data Miner | Met Data Miner 6982 | -7/Data Miner | Learned location of Section 7 (-3) 6982 | -7/Data Miner | Acquired the access code to Warlord's prototype stash 7000 | -7/Data Miner | Received God Mode back door access code from Data Miner 7049 | -7/Data Miner | Destroyed Data Miner 7052 | -7/Data Miner | Interfaced with the Data Conduit 7108 | -7/Data Miner | Lost 4 parts (1p1n1u1w) 7115 | -7/Data Miner | Entered Proximity Caves 7118 | -6/Proximity Caves | Spotter reported a threat 7118 | -6/Proximity Caves | Spotter reported a threat 7171 | -6/Proximity Caves | Spotter reported a threat 7328 | -6/Proximity Caves | Spotter reported a threat 7333 | -6/Proximity Caves | Spotter reported a threat 7386 | -6/Proximity Caves | Spotter reported a threat 7392 | -6/Proximity Caves | Spotter reported a threat 7632 | -6/Proximity Caves | Spotter reported a threat 7665 | -6/Proximity Caves | Spotter reported a threat 7683 | -6/Proximity Caves | Attracted the attention of an 0b10 outpost 7724 | -6/Proximity Caves | Destroyed 10 combat bots 7765 | -6/Proximity Caves | Core integrity fell below 50% 7768 | -6/Proximity Caves | Build established: Mutant 7851 | -6/Proximity Caves | Lost 4 parts (2u2w) 7989 | -6/Proximity Caves | Spotter reported a threat 8022 | -6/Proximity Caves | Discovered new exit (range 7) 8088 | -6/Proximity Caves | Attracted the attention of an 0b10 checkpoint 8119 | -6/Proximity Caves | Entered Factory 8119 | -6/Factory | Evolved 2 slots: Power x1, Weapon x1 8120 | -6/Factory | Loaded intel: 266 machine locations 8469 | -6/Factory | Search patrols dispatched 8673 | -6/Factory | Build established: Gunner 8819 | -6/Factory | Search patrols dispatched 8897 | -6/Factory | Sucked down chute 8897 | -6/Factory | Entered Waste 8912 | -6/Waste | EMP discharged 8916 | -6/Waste | Spotted C-40 Crusher 8934 | -6/Waste | Spotted C-40 Crusher 8936 | -6/Waste | Spotted C-40 Crusher 8944 | -6/Waste | Spotted C-40 Crusher 8952 | -6/Waste | Spotted C-40 Crusher 8970 | -6/Waste | Spotted C-40 Crusher 9012 | -6/Waste | EMP discharged 9012 | -6/Waste | System corruption reached 10% 9112 | -6/Waste | EMP discharged 9131 | -6/Waste | Discovered new exit (range 12) 9164 | -6/Waste | Entered Factory 9165 | -6/Factory | Loaded intel: 285 machine locations 9481 | -6/Factory | Build established: Mutant 9687 | -6/Factory | Lost 8 parts (2p4n1u1w) 10486 | -6/Factory | Lost 8 parts (1p3n1u3w) 10595 | -6/Factory | Discovered new exit (range 12) 10609 | -6/Factory | Entered Extension 10610 | -6/Extension | Loaded intel: 42 machine locations 10667 | -6/Extension | Remotely autohacked Sealed Heavy Doors 10667 | -6/Extension | Rescued a captive Derelict 10668 | -6/Extension | Rescued a captive Derelict 10728 | -6/Extension | Remotely autohacked Sealed Heavy Doors 10729 | -6/Extension | Rescued A7 10809 | -6/Extension | Remotely autohacked Sealed Heavy Doors 10814 | -6/Extension | Rescued a captive Derelict 10854 | -6/Extension | Lost 3 parts (1p1n1u) 10980 | -6/Extension | Spotted B-75 Beast 10992 | -6/Extension | Remotely autohacked Sealed Heavy Doors 10992 | -6/Extension | Rescued a captive Derelict 11006 | -6/Extension | Spotted B-75 Beast 11015 | -6/Extension | Core integrity fell below 50% 11016 | -6/Extension | Destroyed B-75 Beast 11047 | -6/Extension | Allies destroyed B-75 Beast 11073 | -6/Extension | Lost 9 parts (1p3n3u2w) 11076 | -6/Extension | Lost 5 allies 11159 | -6/Extension | Disrupted transfer network 11327 | -6/Extension | Build established: Commander-Mutant 11401 | -6/Extension | System corruption reached 30% 11449 | -6/Extension | Remotely autohacked Sealed Heavy Doors 11452 | -6/Extension | Rescued a captive Derelict 11452 | -6/Extension | Rescued a captive Derelict 11509 | -6/Extension | Remotely autohacked Sealed Heavy Doors 11509 | -6/Extension | Rescued a captive Derelict 11511 | -6/Extension | Rescued a captive Derelict 11532 | -6/Extension | Remotely autohacked Sealed Heavy Doors 11532 | -6/Extension | Rescued a captive Derelict 11533 | -6/Extension | Rescued a captive Derelict 11587 | -6/Extension | Remotely autohacked Sealed Heavy Doors 11588 | -6/Extension | Rescued a captive Derelict 11589 | -6/Extension | Rescued a captive Derelict 11611 | -6/Extension | Remotely autohacked Sealed Heavy Doors 11611 | -6/Extension | Rescued a captive Derelict 11613 | -6/Extension | Rescued a captive Derelict 11629 | -6/Extension | Remotely autohacked Sealed Heavy Doors 11629 | -6/Extension | Rescued a captive Derelict 11657 | -6/Extension | Remotely autohacked Sealed Heavy Doors 11657 | -6/Extension | Rescued a captive Derelict 11787 | -6/Extension | Remotely autohacked Sealed Heavy Doors 11788 | -6/Extension | Rescued a captive Derelict 11842 | -6/Extension | Discovered new exit (range 10) 11844 | -6/Extension | Discovered new exit (range 6) 11970 | -6/Extension | Entered Cetus 11970 | -6/Cetus | Accompanied by 21 allies (A7) 11971 | -6/Cetus | Loaded intel: 24 machine locations 11975 | -6/Cetus | Build established: Commander-Skirmisher 11975 | -6/Cetus | Acquired a Cetus Manufacturing Module code from A7 11986 | -6/Cetus | Spotted Cetus Guard 11988 | -6/Cetus | Spotted Cetus Guard 11990 | -6/Cetus | Spotted Cetus Guard 11991 | -6/Cetus | Spotted Cetus Guard 11993 | -6/Cetus | Allies destroyed Cetus Guard 11995 | -6/Cetus | Allies destroyed Cetus Guard 12001 | -6/Cetus | Allies destroyed Cetus Guard 12012 | -6/Cetus | Allies destroyed Cetus Guard 12044 | -6/Cetus | Lost 3 allies 12127 | -6/Cetus | Remotely autohacked Sealed Heavy Doors 12132 | -6/Cetus | Started Cetus Manufacturing Module 12147 | -6/Cetus | Discovered new exit (range 21) 12157 | -6/Cetus | Manufactured an Enhanced Grunt 12182 | -6/Cetus | Manufactured an Enhanced Grunt 12207 | -6/Cetus | Manufactured an Enhanced Grunt 12232 | -6/Cetus | Manufactured an Enhanced Grunt 12248 | -6/Cetus | Escorted A7 to Cetus Mainframe 12257 | -6/Cetus | Manufactured an Enhanced Grunt 12330 | -6/Cetus | Spotted Cetus Guard 12330 | -6/Cetus | Spotted Cetus Guard 12330 | -6/Cetus | Spotted Cetus Guard 12330 | -6/Cetus | Spotted Cetus Guard 12340 | -6/Cetus | Allies destroyed Cetus Guard 12343 | -6/Cetus | Allies destroyed Cetus Guard 12355 | -6/Cetus | Allies destroyed Cetus Guard 12355 | -6/Cetus | Allies destroyed Cetus Guard 12363 | -6/Cetus | Discovered new exit (range 21) 12380 | -6/Cetus | Lost 7 allies 12395 | -6/Cetus | Met Revision 17 12555 | -6/Cetus | Murdered A7 12558 | -6/Cetus | Extracted ID and sensor layout for unrecognized location from A7's data core 12596 | -6/Cetus | Entered Archives 12596 | -6/Archives | Accompanied by 15 allies 12597 | -6/Archives | Loaded intel: 8 machine locations 12648 | -6/Archives | Discovered new exit (range 20) 12670 | -6/Archives | Discovered new exit (range 21) 12693 | -6/Archives | Discovered new exit (range 21) 12807 | -6/Archives | Build established: Commander-Mutant 13264 | -6/Archives | Entered Factory 13264 | -5/Factory | Accompanied by 14 allies 13264 | -5/Factory | Evolved 2 slots: Propulsion x1, Utility x1 13265 | -5/Factory | Loaded intel: 297 machine locations 13397 | -5/Factory | Spotted B-75 Beast 13421 | -5/Factory | Allies destroyed B-75 Beast 13477 | -5/Factory | Identified exit to Upper Caves 13522 | -5/Factory | Garrison activated, responded to threat 13581 | -5/Factory | Lost 5 allies 13662 | -5/Factory | Discovered new exit (range 15) 13686 | -5/Factory | Lost 3 allies 13831 | -5/Factory | Build established: Scavenger-Tank 13994 | -5/Factory | Discovered new exit (range 21) 14193 | -5/Factory | Entered Upper Caves 14193 | -5/Upper Caves | Accompanied by 5 allies 14570 | -5/Upper Caves | Attracted the attention of an 0b10 checkpoint 14585 | -5/Upper Caves | Learned Factory interactive machine intel 14913 | -5/Upper Caves | Discovered new exit (range 4) 15040 | -5/Upper Caves | Acquired the password to a Derelict Tinkerer's latest research 15050 | -5/Upper Caves | Found Prototype Special Weapon 15050 | -5/Upper Caves | Identified Molecular Deconstructor 15144 | -5/Upper Caves | Caught by Unaware searching for contraband prototypes 15144 | -5/Upper Caves | Caught by Unaware searching for contraband prototypes 15170 | -5/Upper Caves | Entered another Upper Caves area 15188 | -5/Upper Caves | Lost 5 allies 15347 | -5/Upper Caves | Discovered new exit (range 10) 15367 | -5/Upper Caves | Encountered a Warlord checkpoint 15536 | -5/Upper Caves | Attracted the attention of an 0b10 checkpoint 15554 | -5/Upper Caves | Discovered new exit (range 6) 15658 | -5/Upper Caves | Entered Zhirov 15658 | -5/Zhirov | Discovered new exit (range 3) 15689 | -5/Zhirov | Met Zhirov 15744 | -5/Zhirov | Zhirov requested help retrieving the SGEMP Prototype 15801 | -5/Zhirov | Found Alien Artifact 15801 | -5/Zhirov | Identified Integrated Dissipator 15801 | -5/Zhirov | Installed Integrated Dissipator, increased core heat dissipation (+20) 15824 | -5/Zhirov | Found Alien Artifact 15970 | -5/Zhirov | Entered Proximity Caves 16006 | -4/Proximity Caves | Attracted the attention of an 0b10 outpost 17021 | -4/Proximity Caves | Learned Research stockpile data 17443 | -4/Proximity Caves | Attracted the attention of an 0b10 checkpoint 17486 | -4/Proximity Caves | Discovered new exit (range 5) 17529 | -4/Proximity Caves | Entered Factory 17529 | -4/Factory | Evolved 2 slots: Propulsion x1, Utility x1 17530 | -4/Factory | Loaded intel: 246 machine locations 17531 | -4/Factory | Loaded intel: 53 interactive machine locations 18119 | -4/Factory | Crushed by falling debris 18125 | -4/Factory | Crushed by falling debris 18131 | -4/Factory | Build established: Scavenger-Skirmisher 18156 | -4/Factory | Lost 3 parts (3u) 18183 | -4/Factory | Discovered new exit (range 12) 18318 | -4/Factory | Entered Armory 18319 | -4/Armory | Loaded intel: 89 machine locations 18435 | -4/Armory | Build established: Scavenger-Tank 18735 | -4/Armory | Identified Transdimensional Reconstructor 18735 | -4/Armory | Warped through subspace to slip node 18735 | -4/Armory | Discovered new exit (range 1) 18765 | -4/Armory | Fabricated Lgt. Regenerative Plating? 18789 | -4/Armory | Entered Lab 18789 | -4/Lab | Discovered new exit (range 9) 18807 | -4/Lab | Hidden lab's door opened automatically 18807 | -4/Lab | Sensor layout match revealed 18808 | -4/Lab | Gained access to the hidden lab's interior 18972 | -4/Lab | Found Alien Artifact 19117 | -4/Lab | Build established: Scavenger-Mutant 19202 | -4/Lab | Found Transdimensional Reconstructor 19214 | -4/Lab | Found Alien Artifact 19214 | -4/Lab | Identified Integrated Reactor 19214 | -4/Lab | Installed Integrated Reactor, increased core energy generation (+10) 19229 | -4/Lab | Found Alien Artifact 19229 | -4/Lab | Identified Core Regenerator 19229 | -4/Lab | Used Core Regenerator, restored core integrity (+149) 19570 | -4/Lab | Found Prototype Protection 19570 | -4/Lab | Identified Exp. Powered Armor 19575 | -4/Lab | Found Prototype Energy Cannon 19580 | -4/Lab | Found Prototype Energy Gun 19580 | -4/Lab | Identified Tachyon Dispersion Ray 19593 | -4/Lab | Found Prototype Hackware 19623 | -4/Lab | Decrypted terminal 19623 | -4/Lab | Acquired modification code for an L2 power cell 19646 | -4/Lab | Found Prototype Special Weapon 19647 | -4/Lab | Identified Gui. Remote Datajack 19650 | -4/Lab | Detected by scanners 19658 | -4/Lab | Confronted by A5 19658 | -4/Lab | System corruption reached 10% 19658 | -4/Lab | Hacked A5 with code downloaded from Data Conduit 19661 | -4/Lab | Destroyed A5 19743 | -4/Lab | Decrypted terminal 19746 | -4/Lab | Found Alien Artifact 19746 | -4/Lab | Identified LC Capacitor 19824 | -4/Lab | Decrypted terminal 19843 | -4/Lab | Entered Research 19843 | -3/Research | Evolved 2 slots: Power x1, Utility x1 19845 | -3/Research | Loaded intel: 128 machine locations 19848 | -3/Research | Identified Deep Network Scanner 20043 | -3/Research | Revision forces began assault on 0b10 20119 | -3/Research | Met up with Revision 17++ 20136 | -3/Research | Build established: Scavenger-Tank 20167 | -3/Research | Found Unknown Launcher 20167 | -3/Research | Identified Gamma Bomb Array 20222 | -3/Research | Identified exit to Research 20384 | -3/Research | Spotted B-86 Titan 20385 | -3/Research | Destroyed B-86 Titan 20441 | -3/Research | Intercept squad dispatched 20543 | -3/Research | Research terminal network offline 20569 | -3/Research | Entered another Research area 20569 | -2/Research | Evolved 2 slots: Utility x2 20570 | -2/Research | Loaded intel: 117 machine locations 20591 | -2/Research | Build established: Hacker-Tank 20689 | -2/Research | Identified exit to Access 20774 | -2/Research | Spotted B-90 Cyclops 20788 | -2/Research | Discovered new exit (range 10) 21014 | -2/Research | Found Exp. Shock Absorption System 21085 | -2/Research | Entered Access 21085 | -1/Access | Evolved 2 slots: Power x1, Utility x1 21086 | -1/Access | Loaded intel: 126 machine locations 21380 | -1/Access | Build established: Generator-Tank 21392 | -1/Access | Identified Potential Cannon 21546 | -1/Access | Discovered new exit (range 8) 21558 | -1/Access | Entered Command 21559 | -1/Command | Loaded intel: 52 machine locations 21801 | -1/Command | Spotted M Guard 21803 | -1/Command | Spotted M Guard 21851 | -1/Command | Spotted Combat Programmer 21851 | -1/Command | Spotted Combat Programmer 21892 | -1/Command | Destroyed Combat Programmer 21919 | -1/Command | System corruption reached 10% 21925 | -1/Command | Destroyed Combat Programmer 21953 | -1/Command | Destroyed M Guard 21965 | -1/Command | Destroyed M Guard 21965 | -1/Command | All MAIN.C guards destroyed 21974 | -1/Command | Lost 8 parts (1p2n4u1w) 21983 | -1/Command | Found Corrupted Prototype Device 21983 | -1/Command | Identified AEGIS Remote Shield 21990 | -1/Command | Found Corrupted Zero-point Reactor 22007 | -1/Command | Found Corrupted Zero-point Reactor 22038 | -1/Command | Found Corrupted Prototype Launcher 22041 | -1/Command | Found Corrupted AEGIS Remote Shield 22050 | -1/Command | Found Corrupted Prototype Protection 22383 | -1/Command | Met MAIN.C 22386 | -1/Command | 0b10 Conduit disabled 22403 | -1/Command | Destroyed MAIN.C Shell 22406 | -1/Command | MAIN.C activated Command garrisons 22406 | -1/Command | Identified Hvy. Regenerative Plating 22407 | -1/Command | System corruption reached 30% 22544 | -1/Command | Core integrity fell below 50% 22553 | -1/Command | Core integrity fell below 20% 22555 | -1/Command | Destroyed by MAIN.C with Omega Cannon Last Messages --------------- 22528_ Integrated Corrupted Exp. Biometal Heavy Treads (+2). 22528_ Corrupted Exp. Biometal Heavy Treads temporarily disabled. 22529_ E,&ITNP1VB07%SZS=J|UGAX>:CZ 22529_ Integrated Corrupted Exp. Biometal Heavy Treads (+7). 22530_ Acquired 19 matter. 22531_ C-30 ARC bursts open, deploying its payload. 22531_ S-43 Plague unfolds itself. 22531_ S-43 Plague destroyed. 22533_ Zero-point Reactor destroyed. 22536_ S-43 Plague suffers critical hit (Destroy). 22536_ S-43 Plague destroyed. 22539_ Acquired 5 matter. 22539_ S-43 Plague destroyed. 22540_ Adv. Heat Sink destroyed. 22542_ Acquired 193 matter. 22542_ Adv. Targeting Computer destroyed. 22545_ System corrupted: Heat flow error (+273). 22546_ Exp. Biometal Heavy Treads destroyed. 22549_ Knocked back. 22553_ Graphene Brace destroyed. Map ----- +----------------------------------------------------+ | ?????????????????"""?????????????????????????????? | | "????????????????????????????????????????????????? | | "????????????????????????????????????????????????? | | "????????????????????????????????????????????????? | | ?????????????????????????????????????????????????? | | "????????????????????????????????????????????????? | | "????????????????????????????????????????????????? | | "????????????????????????????????????????????????? | | ?????????????????????????????????????????????????? | | ?????????????????????????????????????????????????? | | ?????????????????????????????????????????????????? | | ?????????????????????????????????????????????????? | | ?????????????????????????????????????????????????? | | ?????????????????????????????????????????????????? | | ?????????????????????????????????????????????????? | | ?????????????????????????????????????????????????? | | ???????????????????#####################?????????? | | ?????????????????#""""""" """ #?????????? | | ?????????????????#"" "" #?????????? | | ?????????????????#""""" "" ########### | | ?????????????????#""""""""""" ; | | ?????????????????#" " " g % | | ?????????????????#"" """" " % % | | ?????????????????#"" "" =g=%!########### | | ?????????????????# % s [p% #?????????? | | ?????????????????# @ s %% %=% #?????????? | | ?????????????????# " % b%s sg= #?????????? | | ?????????????????#""" " %s % #?????????? | | ?????????????????#"" % s s% % #?????????? | | ?????????????????# %% #?????????? | | ?????????????????# % % % #?????????? | | ?????????????????# %% #?????????? | | ???????????????""" M " #?????????? | | ???????????????""" " " #?????????? | | ???????????????""" " #?????????? | | ?????????????????# "" " #?????????? | | ?????????????????# " """"""#?????????? | | ?????????????????# " " #?????????? | | ?????????????????#######################?????????? | | ?????????????????????????????????????????????????? | | ?????????????????????????????????????????????????? | | ?????????????????????????????????????????????????? | | ?????????????????????????????????????????????????? | | ?????????????????????????????????????????????????? | | ?????????????????????????????????????????????????? | | ?????????????????????????????????????????????????? | | ?????????????????????????????????????????????????? | | ?????????????????????????????????????????????????? | | ?????????????????????????????????????????????????? | | ?????????????????????????????????????????????????? | +----------------------------------------------------+ Best States ------------- Heat Dissipation 164 Coolant Potential 100 Energy Generation 107 Energy Capacity 940 Matter Stores 300 Matter Capacity 300 Sight Range 22 Robot Scan Range 15 Terrain Scan Density 10 Jamming Range 16 Armor Coverage 2450 Resistance: TH 15 Resistance: EX 75 Propulsion Shielding 66 Utility Shielding 90 Weapon Shielding 66 Point Defense Rating 240 Evasion (%) 40 Targeting Accuracy 14 Core Analysis 6 Recoil Reduction 6 Salvage Targeting 3 Offensive Hacking 26 Defensive Hacking 12 Relay Coupler Types 1 Relay Coupler Value 40 Item Schematics ----------------- Huge Storage Unit | -10/Materials | Hacked Hcp. Storage Unit | -10/Materials | Hacked Combat Drone Bay | -7/Data Miner | Free Lgt. Regenerative Plating | -7/Data Miner | Free Thermal Defense Suite | -7/Data Miner | Free Imp. Heavy Laser | -7/Data Miner | Free Thunder Leg | -7/Data Miner | Free Lrn. Tractor Beam | -7/Data Miner | Free Cld. Cesium-ion Thruster | -7/Data Miner | Free Adv. Plasma Cannon | -7/Data Miner | Free Focal Shield | -7/Data Miner | Free Assault Drone Bay | -5/Zhirov | Free Exp. Heat Sink | -5/Zhirov | Free Imp. Arc Thrower | -5/Zhirov | Free Exp. Optical Array | -5/Zhirov | Free Robot Schematics ------------------ X-62 Marksman | -7/Data Miner | Free W-25 Informer | -7/Data Miner | Free S-27 Virus | -7/Data Miner | Free R-10 Processor | -7/Data Miner | Free Fabricated ------------ Lgt. Regenerative Plating | x1 | -4/Armory Repaired ---------- Nothing Alien Tech Used ----------------- Core Expander Integrated Dissipator Transdimensional Reconstructor Integrated Reactor Core Regenerator LC Capacitor Achievements -------------- Decrypted! Challenges ------------ None Game ------ Seed PitchforkDataCompactor Manual? 0 Play Time 04:08:54 Cumulative 102.3 hours Start 2025.06.27 @ 10:35:29 End 2025.06.30 @ 22:21:37 Sessions 7 Manual Loads 0 Difficulty Rogue Special Mode None Game No. 67 Rogue 67 Adventurer 0 Explorer 0 Win Type - Total 9 Types 2/1/3/1/1/0/0/0/0/1 Lore% 60 Gallery% 58 Achievement% 60 Wizard Run 0 Options --------- Layout 0 ASCII 0 Keyboard 1 Movement Vi Keybinds 0 Fullscreen 2 Font 18/SmallcapsGlow Map View 76x50 Zoom Use 0% Tactical HUD 1 Map Filters NONE Filters NONE Steam 1 RUN: a6433a03-f45a-4300-9771-54f8cfec998a